fUST/lending_fUST_20250818
["ID","MTS","AMOUNT","RATE_DAILY","PERIOD"]
[379962988,1755450644911,-160.0,0.000255,3]
[379962989,1755450644921,-356.0,0.00025516,2]
[379962991,1755450644930,-3468.198117,0.0002557,2]
[379962993,1755450644940,-155.2,0.00025585,7]
[379962995,1755450644949,-151.98,0.00025585,7]
[379962997,1755450644959,-4000.0,0.00025625,4]
[379962999,1755450644968,-321.5711078,0.00025671,2]
[379963001,1755450644977,-155.29331807,0.00025685,7]
[379963003,1755450644987,-151.98,0.00025685,7]
[379963005,1755450644996,-151.0,0.00025765,6]
[379963007,1755450645008,-151.98,0.00025785,7]
[379963009,1755450645018,-3468.198117,0.00025825,2]
[379963011,1755450645027,-450.0,0.00025868,2]
[379963013,1755450645037,-350.0,0.00025868,2]
[379963015,1755450645047,-152.03,0.00025885,7]
[379963017,1755450645057,-166.0,0.0002589,7]
[379963019,1755450645066,-9095.20490448,0.00025939,4]
[379963021,1755450645075,-501.93147384,0.00025968,2]
[379963023,1755450645086,-1500.0,0.00025968,2]
[379963025,1755450645096,-168.0,0.0002597,2]
[379963027,1755450645105,-160.0,0.00026,3]
[379963029,1755450645114,-375.77065697,0.00026,3]
[379963031,1755450645123,-417.15472785,0.00026,3]
[379963033,1755450645132,-160.0,0.00026,3]
[379963034,1755450645141,-528.48506731,0.00026,3]
[379963035,1755450645150,-216.83204348,0.00026,3]
[379963036,1755450645159,-215.71995163,0.00026,3]
[379963037,1755450645170,-160.0,0.00026,3]
[379963038,1755450645179,-12682.46447135,0.00026,3]
[379963039,1755450645189,-496.19133972,0.00026001,7]
[379963040,1755450645198,-1000.0,0.00026023,20]
[379963041,1755450645207,-1220.0,0.00026023,2]
[379963042,1755450645216,-3468.198117,0.0002608,2]
[379963043,1755450645226,-28090.58999666,0.000261,2]
[379963044,1755450645304,-2041.33000334,0.000261,2]
[379963045,1755450645313,-113.22932928,0.000261,7]
[379963046,1755450645324,-5045.41067072,0.000261,7]
[379963047,1755450645334,-4142.72343457,0.00026119,2]
[379963048,1755450645342,-274.0976746,0.00026167,7]
[379963049,1755450645353,-81.9023254,0.00026167,7]
[379963050,1755450645363,-150.0,0.00026172,30]
[379963051,1755450645373,-213.71950195,0.00026189,2]
[379963052,1755450645381,-14.37817265,0.000262,7]
[379963060,1755450645454,-480.0,0.00019178,2]
[379963062,1755450645463,-480.0,0.00019178,2]
[379963064,1755450645473,-454.75155005,0.00019452,2]
[379963067,1755450645489,-25.24844995,0.00019452,2]
[379963069,1755450645499,-249.46,0.00019726,2]
[379963071,1755450645508,-76.81365369,0.000262,7]
[379963079,1755450645579,-842.01999999,0.00018978,2]
[379963081,1755450645589,-1121.68094968,0.00018978,2]
[379963179,1755450646556,-1786.7914068,0.00018978,2]
[379963192,1755450646665,-162184.87260533,0.00018978,2]
[379963194,1755450646675,-480.0,0.00019178,2]
[379963196,1755450646684,-480.0,0.00019178,2]
[379963198,1755450646694,-480.0,0.00019178,2]
[379963200,1755450646703,-480.0,0.00019178,2]
[379963201,1755450646712,-480.0,0.00019178,2]
[379963206,1755450646723,-480.0,0.00019178,2]
[379963208,1755450646732,-312.79,0.00019452,2]
[379963211,1755450646741,-248.12253601,0.00019452,2]
[379963214,1755450646751,-308.99,0.00019452,2]
[379963217,1755450646760,-2200.0,0.00024873,2]
[379963220,1755450646769,-152.43204742,0.00025202,2]
[379963223,1755450646779,-19894.64817366,0.000262,7]
[379963226,1755450646787,-153.0,0.00026219,2]
[379963228,1755450646797,-153.0,0.00026219,2]
[379963230,1755450646806,-153.0,0.00026219,2]
[379963232,1755450646815,-869.9342161,0.00026274,2]
[379963234,1755450646824,-3468.198117,0.00026335,2]
[379963236,1755450646833,-160.7855539,0.00026356,2]
[379963238,1755450646843,-160.7855539,0.00026356,2]
[379963240,1755450646851,-160.7855539,0.00026356,2]
[379963242,1755450646860,-321.5711078,0.00026356,2]
[379963244,1755450646869,-356.0,0.00026382,2]
[379963246,1755450646879,-151.0,0.00026383,7]
[379963248,1755450646888,-356.0,0.0002641,2]
[379963250,1755450646898,-450.70757288,0.00026416,2]
[379963252,1755450646907,-450.0,0.00026416,2]
[379963253,1755450646915,-9095.20490448,0.00026443,5]
[379963255,1755450646925,-2000.0,0.00026516,2]
[379963257,1755450646934,-168.0,0.00026588,2]
[379963259,1755450646943,-3468.198117,0.00026591,2]
[379963261,1755450646952,-168.0,0.00026617,2]
[379963263,1755450646961,-168.0,0.00026632,2]
[379963265,1755450646971,-471.137337,0.00026676,2]
[379963267,1755450646980,-160.7855539,0.00026693,2]
[379963269,1755450646989,-580.6760442,0.00026693,2]
[379963271,1755450647000,-279.22334,0.00026712,2]
[379963273,1755450647012,-4000.0,0.00026718,4]
[379963275,1755450647021,-500.0,0.00026768,2]
[379963277,1755450647031,-1400.0,0.0002677,2]
[379963279,1755450647040,-800.0,0.00026775,2]
[379963281,1755450647053,-500.0,0.00026777,2]
[379963283,1755450647063,-500.0,0.00026806,2]
[379963285,1755450647072,-500.0,0.00026818,2]
[379963287,1755450647081,-1400.0,0.00026822,2]
[379963289,1755450647092,-500.0,0.00026827,2]
[379963291,1755450647114,-800.0,0.00026845,2]
[379963293,1755450647130,-3468.198117,0.00026846,2]
[379963295,1755450647140,-356.0,0.00026848,2]
[379963297,1755450647149,-511.0,0.0002685,2]
[379963299,1755450647158,-151.0,0.0002685,2]
[379963301,1755450647167,-198.0,0.0002685,2]
[379963303,1755450647176,-209.14763512,0.0002685,2]
[379963305,1755450647186,-198.0,0.0002685,2]
[379963307,1755450647195,-500.0,0.0002685,2]
[379963309,1755450647204,-151.0,0.0002685,2]
[379963311,1755450647213,-151.0,0.0002685,2]
[379963313,1755450647222,-1221.07113822,0.00026873,2]
[379963314,1755450647232,-800.0,0.00026873,2]
[379963316,1755450647241,-500.0,0.00026885,2]
[379963318,1755450647251,-1400.0,0.00026894,2]
[379963320,1755450647261,-800.0,0.00026895,2]
[379963322,1755450647271,-1152.0,0.00026907,2]
[379963324,1755450647280,-1400.0,0.00026909,2]
[379963327,1755450647290,-17.2231746,0.00026928,2]
[379963330,1755450647315,-150.7768254,0.00026928,2]
[379963332,1755450647325,-287.85867283,0.00026934,2]
[379965192,1755450861370,529.509971,0.00027397,120]
[379965193,1755450890785,1000.0,0.00018246,2]
[379965194,1755450972270,3528.862663,0.00018371,2]
[379965195,1755450972291,5000.0,0.00018371,2]
[379965196,1755450972311,1471.137337,0.00018371,2]
[379965201,1755451116216,3528.862663,0.00018371,2]
[379965202,1755451116238,5000.0,0.00018371,2]
[379965203,1755451116259,5000.0,0.00018371,2]
[379965204,1755451116282,5000.0,0.00018371,2]
[379965205,1755451116303,3943.183925,0.00018371,2]
[379965259,1755451691541,400.466736,0.00013699,2]
[379965320,1755451832721,-261.63178041,0.0001887,2]
[379965322,1755451832731,-337.49179038,0.000189,2]
[379965323,1755451832742,-172.1845301,0.0001897,2]
[379965325,1755451832751,-706.97872852,0.00019051,2]
[379965328,1755451832761,-174.21037399,0.0001907,2]
[379965331,1755451832771,-3410.69204548,0.0001907,2]
[379965334,1755451832780,-164.3918117,0.0001916,5]
[379965336,1755451832789,-558.66635409,0.00019168,2]
[379965338,1755451832798,-45355.30119884,0.00019168,2]
[379965340,1755451832807,-300.0,0.00019168,2]
[379965342,1755451832817,-300.0,0.00019168,2]
[379965344,1755451832826,-300.0,0.00019168,2]
[379965346,1755451832835,-300.0,0.00019168,2]
[379965347,1755451832844,-500.0,0.00019173,2]
[379965349,1755451832853,-500.0,0.00019173,2]
[379965351,1755451832862,-258.05490251,0.00019173,2]
[379965353,1755451832871,-500.0,0.00019173,2]
[379965355,1755451832880,-505.71245341,0.00019173,2]
[379965357,1755451832890,-500.0,0.00019173,2]
[379965359,1755451832902,-287.99041627,0.00019173,2]
[379965361,1755451832917,-101.2420777,0.00019173,2]
[379965363,1755451832926,-500.0,0.00019173,2]
[379965365,1755451832935,-500.0,0.00019173,2]
[379965366,1755451832944,-500.0,0.00019173,2]
[379965367,1755451832953,-560.73863977,0.00019173,2]
[379965369,1755451832965,-2.234847,0.00019173,2]
[379965370,1755451832973,-374.66991555,0.00019173,2]
[379965371,1755451832986,-3.97312218,0.00019173,2]
[379965372,1755451832997,-496.02687782,0.00019173,2]
[379965373,1755451833007,-500.0,0.00019173,2]
[379965375,1755451833016,-251.89532166,0.00019173,2]
[379965377,1755451833027,-377.08076169,0.00019173,2]
[379965378,1755451833037,-500.0,0.00019173,2]
[379965381,1755451833047,-500.0,0.00019173,2]
[379965382,1755451833057,-500.0,0.00019173,2]
[379965384,1755451833066,-500.0,0.00019173,2]
[379965386,1755451833076,-500.0,0.00019173,2]
[379965388,1755451833086,-500.0,0.00019173,2]
[379965390,1755451833096,-500.0,0.00019173,2]
[379965392,1755451833105,-500.0,0.00019173,2]
[379965394,1755451833115,-500.0,0.00019173,2]
[379965396,1755451833124,-500.0,0.00019173,2]
[379965398,1755451833134,-500.0,0.00019173,2]
[379965400,1755451833143,-500.0,0.00019173,2]
[379965401,1755451833152,-500.0,0.00019173,2]
[379965402,1755451833162,-500.0,0.00019173,2]
[379965403,1755451833171,-500.0,0.00019173,2]
[379965404,1755451833180,-158.3190125,0.00019173,2]
[379965405,1755451833189,-617.39529896,0.00019173,2]
[379965406,1755451833198,-58.82977529,0.00019173,2]
[379965419,1755451839129,-500.0,0.00019167,2]
[379965420,1755451839138,-936.46588759,0.00019167,2]
[379965421,1755451839147,-500.0,0.00019167,2]
[379965422,1755451839157,-500.0,0.00019167,2]
[379965423,1755451839166,-228.23018885,0.00019167,2]
[379965424,1755451839176,-936.46588759,0.00019167,2]
[379965425,1755451839186,-500.0,0.00019167,2]
[379965426,1755451839195,-500.0,0.00019167,2]
[379965427,1755451839204,-500.0,0.00019167,2]
[379965428,1755451839214,-936.46588759,0.00019167,2]
[379965429,1755451839223,-500.0,0.00019167,2]
[379965430,1755451839232,-500.0,0.00019167,2]
[379965431,1755451839242,-500.0,0.00019167,2]
[379965432,1755451839251,-500.0,0.00019167,2]
[379965433,1755451839260,-500.0,0.00019167,2]
[379965434,1755451839269,-500.0,0.00019167,2]
[379965435,1755451839278,-500.0,0.00019167,2]
[379965436,1755451839287,-500.0,0.00019167,2]
[379965437,1755451839296,-491.09775936,0.00019167,2]
[379965438,1755451839308,-8.90224064,0.00019167,2]
[379965439,1755451839317,-500.0,0.00019167,2]
[379965440,1755451839326,-500.0,0.00019167,2]
[379965441,1755451839335,-500.0,0.00019167,2]
[379965442,1755451839344,-500.0,0.00019167,2]
[379965443,1755451839353,-500.0,0.00019167,2]
[379965444,1755451839362,-500.0,0.00019167,2]
[379965445,1755451839371,-410.22880496,0.00019167,2]
[379965446,1755451839390,-526.23708263,0.00019167,2]
[379965447,1755451839399,-500.0,0.00019167,2]
[379965448,1755451839408,-260.86492987,0.00019167,2]
[379965449,1755451839417,-500.0,0.00019167,2]
[379965450,1755451839426,-936.46588759,0.00019167,2]
[379965451,1755451839435,-500.0,0.00019167,2]
[379965452,1755451839444,-936.46588759,0.00019167,2]
[379965453,1755451839453,-500.0,0.00019167,2]
[379965454,1755451839462,-936.46588759,0.00019167,2]
[379965455,1755451839471,-500.0,0.00019167,2]
[379965456,1755451839480,-500.0,0.00019167,2]
[379965457,1755451839490,-936.46588759,0.00019167,2]
[379965458,1755451839498,-500.0,0.00019167,2]
[379965459,1755451839507,-500.0,0.00019167,2]
[379965460,1755451839516,-936.46588759,0.00019167,2]
[379965461,1755451839525,-418.45412132,0.00019167,2]
[379965462,1755451839534,-936.46588759,0.00019167,2]
[379965463,1755451839543,-500.0,0.00019167,2]
[379965464,1755451839552,-936.46588759,0.00019167,2]
[379965465,1755451839562,-500.0,0.00019167,2]
[379965466,1755451839571,-936.46588759,0.00019167,2]
[379965467,1755451839581,-500.0,0.00019167,2]
[379965468,1755451839590,-936.46588759,0.00019167,2]
[379965469,1755451839599,-500.0,0.00019167,2]
[379965470,1755451839609,-500.0,0.00019167,2]
[379965471,1755451839618,-936.46588759,0.00019167,2]
[379965472,1755451839628,-500.0,0.00019167,2]
[379965473,1755451839638,-936.46588759,0.00019167,2]
[379965474,1755451839648,-500.0,0.00019167,2]
[379965475,1755451839658,-936.46588759,0.00019167,2]
[379965476,1755451839667,-500.0,0.00019167,2]
[379965477,1755451839677,-500.0,0.00019167,2]
[379965478,1755451839687,-936.46588759,0.00019167,2]
[379965479,1755451839697,-500.0,0.00019167,2]
[379965480,1755451839707,-936.46588759,0.00019167,2]
[379965481,1755451839716,-500.0,0.00019167,2]
[379965482,1755451839726,-936.46588759,0.00019167,2]
[379965483,1755451839735,-500.0,0.00019167,2]
[379965484,1755451839746,-500.0,0.00019167,2]
[379965485,1755451839755,-936.46588759,0.00019167,2]
[379965486,1755451839765,-500.0,0.00019167,2]
[379965487,1755451839774,-936.46588759,0.00019167,2]
[379965488,1755451839784,-936.46588759,0.00019167,2]
[379965489,1755451839793,-500.0,0.00019167,2]
[379965490,1755451839803,-936.46588759,0.00019167,2]
[379965491,1755451839813,-500.0,0.00019167,2]
[379965492,1755451839822,-936.46588759,0.00019167,2]
[379965493,1755451839831,-936.46588759,0.00019167,2]
[379965494,1755451839841,-500.0,0.00019167,2]
[379965495,1755451839850,-500.0,0.00019167,2]
[379965496,1755451839859,-936.46588759,0.00019167,2]
[379965497,1755451839868,-936.46588759,0.00019167,2]
[379965498,1755451839878,-936.46588759,0.00019167,2]
[379965499,1755451839888,-500.0,0.00019167,2]
[379965500,1755451839899,-936.46588759,0.00019167,2]
[379965501,1755451839910,-500.0,0.00019167,2]
[379965502,1755451839919,-936.46588759,0.00019167,2]
[379965503,1755451839930,-500.0,0.00019167,2]
[379965504,1755451839939,-936.46588759,0.00019167,2]
[379965505,1755451839948,-936.46588759,0.00019167,2]
[379965506,1755451839957,-259.88516707,0.00019167,2]
[379965507,1755451839966,-936.46588759,0.00019167,2]
[379965508,1755451839979,-936.46588759,0.00019167,2]
[379965509,1755451839988,-500.0,0.00019167,2]
[379965510,1755451839998,-936.46588759,0.00019167,2]
[379965511,1755451840007,-936.46588759,0.00019167,2]
[379965512,1755451840016,-936.46588759,0.00019167,2]
[379965513,1755451840026,-936.46588759,0.00019167,2]
[379965514,1755451840035,-936.46588759,0.00019167,2]
[379965515,1755451840044,-936.46588759,0.00019167,2]
[379965516,1755451840054,-936.46588759,0.00019167,2]
[379965517,1755451840063,-936.46588759,0.00019167,2]
[379965518,1755451840071,-936.46588759,0.00019167,2]
[379965519,1755451840081,-936.46588759,0.00019167,2]
[379965520,1755451840090,-936.46588759,0.00019167,2]
[379965522,1755451840100,-936.46588759,0.00019167,2]
[379965523,1755451840109,-936.46588759,0.00019167,2]
[379965524,1755451840118,-936.46588759,0.00019167,2]
[379965525,1755451840128,-936.46588759,0.00019167,2]
[379965526,1755451840138,-936.46588759,0.00019167,2]
[379965527,1755451840147,-936.46588759,0.00019167,2]
[379965529,1755451840157,-936.46588759,0.00019167,2]
[379965530,1755451840166,-936.46588759,0.00019167,2]
[379965531,1755451840176,-936.46588759,0.00019167,2]
[379965533,1755451840185,-936.46588759,0.00019167,2]
[379965534,1755451840194,-936.46588759,0.00019167,2]
[379965535,1755451840203,-936.46588759,0.00019167,2]
[379965536,1755451840212,-936.46588759,0.00019167,2]
[379965537,1755451840221,-936.46588759,0.00019167,2]
[379965538,1755451840231,-936.46588759,0.00019167,2]
[379965539,1755451840240,-936.46588759,0.00019167,2]
[379965540,1755451840249,-936.46588759,0.00019167,2]
[379965541,1755451840259,-936.46588759,0.00019167,2]
[379965542,1755451840268,-936.46588759,0.00019167,2]
[379965543,1755451840277,-936.46588759,0.00019167,2]
[379965544,1755451840286,-500.0,0.00019167,2]
[379965545,1755451840295,-457.89255792,0.00019173,2]
[379965546,1755451840305,-500.0,0.00019173,2]
[379965547,1755451840314,-500.0,0.00019173,2]
[379965548,1755451840323,-463.61807244,0.00019178,2]
[379965549,1755451840332,-480.0,0.00019178,2]
[379965550,1755451840341,-480.0,0.00019178,2]
[379965551,1755451840350,-467.23752898,0.00019178,2]
[379965552,1755451840359,-480.0,0.00019178,2]
[379965553,1755451840367,-480.0,0.00019178,2]
[379965554,1755451840376,-480.0,0.00019178,2]
[379965555,1755451840387,-480.0,0.00019178,2]
[379965556,1755451840396,-480.0,0.00019178,2]
[379965558,1755451840406,-498.61747842,0.00019178,2]
[379965560,1755451840415,-480.0,0.00019178,2]
[379965562,1755451840424,-480.0,0.00019178,2]
[379965564,1755451840433,-460.0,0.00019178,2]
[379965566,1755451840442,-480.0,0.00019178,2]
[379965568,1755451840452,-361.13926781,0.00019178,2]
[379965570,1755451840461,-483.85675554,0.00019178,2]
[379965572,1755451840470,-231.53048284,0.00019178,2]
[379965574,1755451840480,-480.0,0.00019178,2]
[379965576,1755451840490,-320.0,0.00019178,2]
[379965578,1755451840500,-480.0,0.00019178,2]
[379965580,1755451840509,-605.9051855,0.00019178,2]
[379965582,1755451840518,-480.0,0.00019178,2]
[379965584,1755451840528,-480.0,0.00019178,2]
[379965586,1755451840538,-460.0,0.00019178,2]
[379965588,1755451840547,-394.0493634,0.00019178,2]
[379965590,1755451840556,-440.0,0.00019178,2]
[379965592,1755451840565,-480.0,0.00019178,2]
[379965594,1755451840575,-480.0,0.00019178,2]
[379965596,1755451840584,-460.0,0.00019178,2]
[379965598,1755451840593,-480.0,0.00019178,2]
[379965600,1755451840603,-480.0,0.00019178,2]
[379965602,1755451840612,-480.0,0.00019178,2]
[379965604,1755451840621,-480.0,0.00019178,2]
[379965606,1755451840630,-480.0,0.00019178,2]
[379965608,1755451840639,-480.0,0.00019178,2]
[379965610,1755451840648,-460.0,0.00019178,2]
[379965612,1755451840657,-480.0,0.00019178,2]
[379965614,1755451840667,-463.46612177,0.00019178,2]
[379965616,1755451840677,-480.0,0.00019178,2]
[379965618,1755451840687,-480.0,0.00019178,2]
[379965620,1755451840696,-480.0,0.00019178,2]
[379965621,1755451840705,-480.0,0.00019178,2]
[379965623,1755451840715,-480.0,0.00019178,2]
[379965625,1755451840724,-460.0,0.00019178,2]
[379965627,1755451840734,-460.0,0.00019178,2]
[379965629,1755451840744,-480.0,0.00019178,2]
[379965631,1755451840754,-480.0,0.00019178,2]
[379965633,1755451840763,-480.0,0.00019178,2]
[379965635,1755451840774,-443.37954409,0.00019178,2]
[379965637,1755451840784,-480.0,0.00019178,2]
[379965639,1755451840793,-240.8088547,0.00019178,2]
[379965641,1755451840802,-480.0,0.00019178,2]
[379965643,1755451840811,-480.0,0.00019178,2]
[379965645,1755451840821,-480.0,0.00019178,2]
[379965647,1755451840830,-480.0,0.00019178,2]
[379965649,1755451840840,-480.0,0.00019178,2]
[379965651,1755451840849,-480.0,0.00019178,2]
[379965653,1755451840858,-460.0,0.00019178,2]
[379965655,1755451840868,-480.0,0.00019178,2]
[379965657,1755451840877,-480.0,0.00019178,2]
[379965659,1755451840887,-440.0,0.00019178,2]
[379965661,1755451840897,-480.0,0.00019178,2]
[379965663,1755451840909,-480.0,0.00019178,2]
[379965665,1755451840918,-480.0,0.00019178,2]
[379965667,1755451840928,-480.0,0.00019178,2]
[379965669,1755451840937,-480.0,0.00019178,2]
[379965671,1755451840946,-480.0,0.00019178,2]
[379965673,1755451840955,-480.0,0.00019178,2]
[379965675,1755451840964,-549.85,0.00019178,2]
[379965677,1755451840973,-432.6,0.00019178,2]
[379965679,1755451840983,-480.0,0.00019178,2]
[379965681,1755451840992,-234.40487785,0.00019178,2]
[379965683,1755451841002,-460.0,0.00019178,2]
[379965685,1755451841011,-480.0,0.00019178,2]
[379965687,1755451841022,-480.0,0.00019178,2]
[379965689,1755451841031,-480.0,0.00019178,2]
[379965691,1755451841041,-480.0,0.00019178,2]
[379965693,1755451841050,-573.88,0.00019178,2]
[379965695,1755451841059,-480.0,0.00019178,2]
[379965697,1755451841068,-480.0,0.00019178,2]
[379965699,1755451841077,-480.0,0.00019178,2]
[379965701,1755451841087,-480.0,0.00019178,2]
[379965703,1755451841097,-480.0,0.00019178,2]
[379965705,1755451841106,-460.0,0.00019178,2]
[379965707,1755451841115,-480.0,0.00019178,2]
[379965709,1755451841124,-584.35,0.00019178,2]
[379965711,1755451841134,-480.0,0.00019178,2]
[379965713,1755451841143,-480.0,0.00019178,2]
[379965715,1755451841152,-480.0,0.00019178,2]
[379965717,1755451841161,-592.12057616,0.00019178,2]
[379965719,1755451841171,-480.0,0.00019178,2]
[379965721,1755451841180,-480.0,0.00019178,2]
[379965723,1755451841190,-480.0,0.00019178,2]
[379965725,1755451841200,-480.0,0.00019178,2]
[379965734,1755451841210,-480.0,0.00019178,2]
[379965736,1755451841350,-480.0,0.00019178,2]
[379965738,1755451841359,-480.0,0.00019178,2]
[379965740,1755451841369,-480.0,0.00019178,2]
[379965742,1755451841378,-480.0,0.00019178,2]
[379965744,1755451841387,-480.0,0.00019178,2]
[379965746,1755451841396,-480.0,0.00019178,2]
[379965748,1755451841405,-604.72,0.00019178,2]
[379965750,1755451841414,-480.0,0.00019178,2]
[379965752,1755451841423,-480.0,0.00019178,2]
[379965754,1755451841432,-480.0,0.00019178,2]
[379965756,1755451841442,-480.0,0.00019178,2]
[379965758,1755451841451,-480.0,0.00019178,2]
[379965760,1755451841460,-480.0,0.00019178,2]
[379965762,1755451841469,-455.45372945,0.00019178,2]
[379965764,1755451841478,-480.0,0.00019178,2]
[379965766,1755451841487,-480.0,0.00019178,2]
[379965767,1755451841496,-480.0,0.00019178,2]
[379965769,1755451841505,-492.67,0.00019178,2]
[379965771,1755451841514,-480.0,0.00019178,2]
[379965773,1755451841523,-480.0,0.00019178,2]
[379965775,1755451841532,-480.0,0.00019178,2]
[379965777,1755451841541,-480.0,0.00019178,2]
[379965779,1755451841550,-480.0,0.00019178,2]
[379965781,1755451841559,-480.0,0.00019178,2]
[379965783,1755451841568,-493.88762099,0.00019178,2]
[379965785,1755451841577,-480.0,0.00019178,2]
[379965787,1755451841587,-465.24067159,0.00019178,2]
[379965789,1755451841596,-480.0,0.00019178,2]
[379965791,1755451841605,-480.0,0.00019178,2]
[379965793,1755451841614,-480.0,0.00019178,2]
[379965795,1755451841623,-480.0,0.00019178,2]
[379965797,1755451841632,-480.0,0.00019178,2]
[379965799,1755451841641,-480.0,0.00019178,2]
[379965801,1755451841650,-480.0,0.00019178,2]
[379965803,1755451841662,-480.0,0.00019178,2]
[379965805,1755451841671,-460.0,0.00019178,2]
[379965807,1755451841680,-575.54,0.00019178,2]
[379965809,1755451841689,-480.0,0.00019178,2]
[379965811,1755451841698,-480.0,0.00019178,2]
[379965813,1755451841707,-480.0,0.00019178,2]
[379965815,1755451841716,-480.0,0.00019178,2]
[379965817,1755451841726,-480.0,0.00019178,2]
[379965819,1755451841735,-518.78,0.00019178,2]
[379965821,1755451841744,-480.0,0.00019178,2]
[379965823,1755451841754,-480.0,0.00019178,2]
[379965825,1755451841763,-613.42,0.00019178,2]
[379965827,1755451841772,-445.2720288,0.00019178,2]
[379965829,1755451841781,-494.01,0.00019178,2]
[379965831,1755451841790,-500.0,0.00019178,2]
[379965833,1755451841799,-480.0,0.00019178,2]
[379965835,1755451841808,-581.88,0.00019178,2]
[379965837,1755451841817,-480.0,0.00019178,2]
[379965839,1755451841827,-500.0,0.00019178,2]
[379965841,1755451841837,-556.17070994,0.00019452,2]
[379965843,1755451841846,-480.0,0.00019452,2]
[379965845,1755451841855,-480.0,0.00019452,2]
[379965847,1755451841865,-480.0,0.00019452,2]
[379965849,1755451841874,-512.32827945,0.00019452,2]
[379965851,1755451841883,-516.58110386,0.00019452,2]
[379965853,1755451841894,-480.0,0.00019452,2]
[379965855,1755451841906,-480.0,0.00019452,2]
[379965857,1755451841915,-492.35,0.00019452,2]
[379965859,1755451841925,-480.0,0.00019452,2]
[379965861,1755451841935,-480.0,0.00019452,2]
[379965862,1755451841945,-310.9524945,0.00019452,2]
[379965864,1755451841954,-480.0,0.00019452,2]
[379965866,1755451841964,-491.72,0.00019452,2]
[379965869,1755451841974,-480.0,0.00019452,2]
[379965870,1755451841985,-480.0,0.00019452,2]
[379965872,1755451841995,-239.18,0.00019452,2]
[379965874,1755451842005,-480.0,0.00019452,2]
[379965876,1755451842014,-480.0,0.00019452,2]
[379965878,1755451842024,-480.0,0.00019452,2]
[379965880,1755451842033,-480.0,0.00019452,2]
[379965882,1755451842042,-480.0,0.00019452,2]
[379965884,1755451842051,-333.73955311,0.00019452,2]
[379965886,1755451842060,-480.0,0.00019452,2]
[379965888,1755451842070,-480.0,0.00019452,2]
[379965890,1755451842079,-480.0,0.00019452,2]
[379965892,1755451842088,-480.0,0.00019452,2]
[379965894,1755451842098,-480.0,0.00019452,2]
[379965896,1755451842107,-191.77045413,0.00019452,2]
[379965898,1755451842116,-480.0,0.00019452,2]
[379965900,1755451842126,-480.0,0.00019452,2]
[379965902,1755451842135,-492.67,0.00019452,2]
[379965904,1755451842144,-480.0,0.00019452,2]
[379965906,1755451842154,-480.0,0.00019452,2]
[379965908,1755451842162,-510.44,0.00019452,2]
[379965910,1755451842172,-480.0,0.00019452,2]
[379965912,1755451842181,-480.0,0.00019452,2]
[379965914,1755451842190,-480.0,0.00019452,2]
[379965916,1755451842200,-480.0,0.00019452,2]
[379965918,1755451842209,-480.0,0.00019452,2]
[379965920,1755451842218,-480.0,0.00019452,2]
[379965922,1755451842227,-480.0,0.00019452,2]
[379965924,1755451842236,-494.01,0.00019452,2]
[379965926,1755451842245,-480.0,0.00019452,2]
[379965928,1755451842255,-1948.54830118,0.00019538,2]
[379965930,1755451842264,-200.0,0.00019561,20]